bitfinex-derivatives/quotes_SOLF0:USTF0_20241212
["timestamp","ask_amount","ask_price","bid_price","bid_amount"]
[1734037228689,7.69883552,228.81,228.74,4.5053]
[1734037229293,10.08409133,228.79,228.7,2.32]
[1734037229590,2.96023031,228.78,228.7,2.32]
[1734037229791,10.08409133,228.79,228.7,4.5056]
[1734037229792,2.1854,228.74,228.7,4.5056]
[1734037231587,2.1854,228.74,228.7,2.1856]
[1734037232186,2.1853,228.75,228.71,2.1855]
[1734037232391,10.08409133,228.78,228.71,2.1855]
[1734037232591,10.08409133,228.78,228.69,7.58124754]
[1734037233589,2.1853,228.74,228.7,2.1857]
[1734037234391,2.1852,228.75,228.71,2.1855]
[1734037235890,2.1853,228.74,228.71,2.1855]
[1734037237085,1.3472,228.79,228.69,7.58124754]
[1734037237393,6.45966811,228.78,228.72,6.45966811]
[1734037237593,2.1851,228.76,228.72,6.45966811]
[1734037238585,2.185,228.77,228.73,2.1854]
[1734037240888,2.1849,228.79,228.75,2.1852]
[1734037241093,1.3801,228.87,228.74,8.77966811]
[1734037241291,1.3801,228.87,228.76,6.45966811]
[1734037241292,6.45966811,228.82,228.76,6.45966811]
[1734037241790,6.45966811,228.84,228.78,6.45966811]
[1734037241993,6.45966811,228.86,228.8,6.45966811]
[1734037242893,2.1844,228.84,228.8,2.1846]
[1734037243092,6.45966811,228.86,228.8,2.1846]
[1734037243293,2.95769995,228.85,228.8,2.1846]
[1734037243493,4.2003,228.87,228.8,2.1846]
[1734037243695,2.95770018,228.86,228.8,2.1846]
[1734037243898,2.95770018,228.85,228.8,2.1846]
[1734037244096,4.2003,228.87,228.8,2.1846]
[1734037244296,2.95886853,228.86,228.8,2.1846]
[1734037244498,2.95886853,228.85,228.8,2.1846]
[1734037244798,2.1844,228.84,228.8,2.1846]
[1734037245100,4.2003,228.87,228.81,2.1846]
[1734037245303,2.1843,228.85,228.81,2.1846]
[1734037246590,12.40768218,228.91,228.83,2.1844]
[1734037247193,10.08768218,228.91,228.79,2.32]
[1734037247505,7.69516717,228.9,228.81,10.08768218]
[1734037247697,2.95967968,228.89,228.81,10.08768218]
[1734037247897,2.1838,228.9,228.81,10.08768218]
[1734037248105,2.95966973,228.89,228.81,10.08768218]
[1734037248298,2.1838,228.9,228.81,10.08768218]
[1734037248493,2.1838,228.9,228.85,2.1842]
[1734037248698,2.1838,228.9,228.85,4.5042]
[1734037249296,10.08768218,228.96,228.85,2.32]
[1734037249497,2.1836,228.92,228.87,2.184]
[1734037249699,2.95994773,228.91,228.87,2.184]
[1734037250399,5.14364773,228.91,228.87,2.184]
[1734037250602,10.08768218,228.96,228.86,2.1841]
[1734037250805,10.08768218,228.93,228.85,2.32]
[1734037251097,2.184,228.88,228.85,2.32]
[1734037251502,10.08768218,228.93,228.85,2.32]
[1734037251696,7.61585044,228.97,228.85,2.32]
[1734037251697,2.1841,228.86,228.85,2.32]
[1734037251903,2.1841,228.86,228.81,2.32]
[1734037252294,2.1841,228.86,228.82,2.1845]
[1734037253193,2.1843,228.85,228.81,2.32]
[1734037253398,10.08768218,228.9,228.81,2.32]
[1734037253599,10.08768218,228.84,228.72,5.32153379]
[1734037253793,2.1847,228.8,228.76,2.185]
[1734037254001,2.1847,228.8,228.73,2.32]
[1734037254499,2.1846,228.82,228.76,2.185]
[1734037254700,2.96523434,228.81,228.73,2.32]
[1734037254900,2.1846,228.82,228.73,2.32]
[1734037255210,2.1846,228.82,228.77,2.185]
[1734037257303,2.96561595,228.81,228.77,2.185]
[1734037257504,2.1846,228.81,228.76,2.1851]
[1734037257800,2.96591444,228.8,228.76,2.1851]
[1734037258005,2.1846,228.81,228.76,2.1851]
[1734037258210,2.96580839,228.8,228.75,2.32]
[1734037258402,2.96603605,228.79,228.75,2.32]
[1734037258599,10.08768218,228.84,228.75,2.32]
[1734037258795,7.71166632,228.83,228.75,2.32]
[1734037259002,2.185,228.78,228.75,2.32]
[1734037260307,10.08768218,228.81,228.72,5.32153379]
[1734037260507,7.71204188,228.8,228.73,2.32]
[1734037260708,7.71204188,228.79,228.73,2.32]
[1734037260913,2.96616995,228.78,228.73,2.32]
[1734037261209,2.96616995,228.77,228.73,2.32]
[1734037261507,10.08768218,228.81,228.73,2.32]
[1734037261508,2.96616995,228.76,228.73,2.32]
[1734037261699,2.96616995,228.75,228.73,2.32]
[1734037261906,10.08768218,228.78,228.71,2.1855]
[1734037262097,10.08768218,228.78,228.59,24.14797746]
[1734037262098,7.71200878,228.77,228.62,10.08768218]
[1734037262302,10.08768218,228.75,228.62,10.08768218]
[1734037262497,2.1859,228.68,228.62,2.1864]
[1734037262702,10.08768218,228.72,228.62,2.1864]
[1734037262899,2.96629938,228.71,228.61,2.32]
[1734037263207,2.32,228.75,228.62,6.46533491]
[1734037263208,6.46533491,228.69,228.62,6.46533491]
[1734037264205,6.46533491,228.69,228.64,6.46533491]
[1734037265312,10.10098972,228.73,228.62,5.23327603]
[1734037265508,2.96398421,228.72,228.62,5.23327603]
[1734037265711,2.96401462,228.71,228.62,5.23327603]
[1734037266009,2.186,228.67,228.61,2.32]
[1734037266206,10.10098972,228.7,228.57,10.10098972]
[1734037266407,10.10098972,228.7,228.58,2.32]
[1734037266606,2.96332429,228.69,228.6,7.32946379]
[1734037266807,12.42098972,228.7,228.58,2.32]
[1734037267101,12.42098972,228.7,228.59,2.1867]
[1734037267102,2.1862,228.65,228.59,2.1867]
[1734037267304,12.42098972,228.7,228.59,5.37756986]
[1734037267504,2.96250831,228.69,228.59,5.37756986]
[1734037267708,12.42098972,228.7,228.59,5.37756986]
[1734037267903,2.96251837,228.69,228.57,10.10098972]
[1734037268104,2.96251837,228.68,228.58,2.1867]
[1734037268303,12.42098972,228.7,228.57,12.42098972]
[1734037268502,2.96162716,228.69,228.57,12.42098972]
[1734037268706,2.96162716,228.68,228.59,2.1867]
[1734037269013,10.10098972,228.67,228.55,2.7376]
[1734037269211,2.1863,228.63,228.57,2.1869]
[1734037269409,2.1863,228.63,228.56,2.32]
[1734037269410,11.46988972,228.67,228.56,2.32]
[1734037270007,11.46988972,228.67,228.58,2.1868]
[1734037270515,2.1864,228.63,228.58,2.1868]
[1734037271014,3.533,228.68,228.57,10.10098972]
[1734037271221,10.10098972,228.71,228.6,10.10098972]
[1734037271419,10.10098972,228.71,228.61,2.32]
[1734037272323,2.1858,228.7,228.61,2.32]
[1734037272823,2.1858,228.69,228.64,2.1862]
[1734037273624,2.1858,228.69,228.65,2.1861]
[1734037275530,2.1856,228.71,228.61,2.32]
[1734037275728,10.10098972,228.77,228.63,10.10098972]
[1734037276031,2.95634959,228.76,228.63,10.10098972]
[1734037276226,2.1852,228.76,228.71,2.1856]
[1734037277728,2.1852,228.75,228.71,2.1856]
[1734037280431,2.1851,228.76,228.72,2.1854]
[1734037281528,2.1852,228.75,228.72,2.1854]
[1734037282733,4.2121,228.79,228.72,2.1854]
[1734037282933,2.95590139,228.78,228.69,12.42098972]
[1734037283136,15.23788146,228.84,228.69,12.42098972]
[1734037283336,2.95572629,228.83,228.69,12.42098972]
[1734037283535,2.95572629,228.82,228.69,12.42098972]
[1734037283733,2.1848,228.8,228.74,2.1853]
[1734037283933,15.23788146,228.84,228.69,2.32]
[1734037284135,2.95558351,228.83,228.69,2.32]
[1734037284335,2.185,228.78,228.73,2.1853]
[1734037284535,10.10098972,228.81,228.73,2.1853]
[1734037284736,2.95582325,228.8,228.73,2.1853]
[1734037284937,10.10098972,228.81,228.73,2.1853]
[1734037285139,2.95576455,228.8,228.73,2.1853]
[1734037285338,10.10098972,228.81,228.73,2.1853]
[1734037286239,2.1849,228.78,228.73,2.1853]
[1734037286436,2.1849,228.78,228.71,2.32]
[1734037286635,2.1849,228.78,228.74,2.1853]
[1734037288038,10.10098972,228.81,228.71,2.32]
[1734037288235,10.10098972,228.84,228.71,2.32]
[1734037288439,2.1847,228.8,228.76,2.1851]
[1734037288739,2.1847,228.8,228.76,4.5051]
[1734037289135,2.1846,228.81,228.77,2.185]
[1734037290137,6.45762881,228.85,228.77,6.45762881]
[1734037290941,6.45762881,228.85,228.79,2.1847]
[1734037292246,8.64212881,228.83,228.79,2.1847]
[1734037292836,6.45762881,228.81,228.76,2.32]
[1734037293040,6.45762881,228.77,228.73,2.32]
[1734037293342,2.1851,228.76,228.73,2.32]
[1734037294637,8.64262881,228.77,228.73,4.5054]
[1734037294843,6.45762881,228.77,228.73,2.32]
[1734037295144,10.09455341,228.8,228.73,2.32]
[1734037295344,2.96016901,228.79,228.73,2.32]
[1734037295642,10.09455341,228.8,228.73,2.32]
[1734037295843,2.96016909,228.79,228.73,2.32]
[1734037296046,2.1851,228.77,228.73,2.32]
[1734037296450,10.09455341,228.8,228.71,4.5056]
[1734037296643,2.96144727,228.79,228.71,4.5056]
[1734037296843,10.09455341,228.8,228.71,4.5056]
[1734037296844,2.1852,228.76,228.71,4.5056]
[1734037297046,10.09455341,228.8,228.71,2.32]
[1734037297246,2.96144756,228.79,228.71,2.32]
[1734037297443,2.96144756,228.78,228.71,2.32]
[1734037297645,10.09455341,228.77,228.68,2.1859]
[1734037297847,10.09455341,228.74,228.63,10.09455341]
[1734037298146,2.1858,228.7,228.65,2.1861]
[1734037298346,10.09455341,228.74,228.65,2.1861]
[1734037298950,2.1858,228.69,228.65,2.1861]
[1734037300249,2.1859,228.68,228.64,2.32]
[1734037300747,10.09455341,228.74,228.64,7.60158579]
[1734037300945,2.1856,228.71,228.64,7.60158579]
[1734037301140,2.96409547,228.7,228.64,7.60158579]
[1734037301346,2.96409547,228.69,228.64,7.60158579]
[1734037301645,10.09455341,228.74,228.64,9.78778579]
[1734037301843,7.70687161,228.73,228.64,9.78778579]
[1734037302043,7.70687161,228.72,228.64,9.78778579]
[1734037302243,2.1859,228.69,228.64,9.78778579]
[1734037302646,10.09455341,228.74,228.64,7.60158579]
[1734037302952,2.1859,228.68,228.64,7.60158579]
[1734037303748,10.09455341,228.74,228.64,2.32]
[1734037303944,7.70774301,228.73,228.64,2.32]
[1734037304147,7.70774301,228.72,228.64,2.32]
[1734037304443,17.80229642,228.71,228.6,2.1866]
[1734037304641,10.09455341,228.68,228.55,1.3591]
[1734037304944,10.09455341,228.62,228.51,2.32]
[1734037305150,2.96451654,228.61,228.52,2.1874]
[1734037305850,2.96451654,228.61,228.53,2.1873]
[1734037306347,10.09455341,228.62,228.53,2.1873]
[1734037306650,2.96267195,228.61,228.53,2.1873]
[1734037306850,2.1868,228.59,228.53,7.41757512]
[1734037307349,2.1864,228.63,228.53,5.23027512]
[1734037307548,1.4306,228.66,228.54,10.09455341]
[1734037307845,7.69923838,228.65,228.54,10.09455341]
[1734037308152,2.1863,228.64,228.55,2.32]
[1734037308345,2.96124553,228.63,228.58,2.1867]
[1734037308550,2.1863,228.64,228.58,2.1867]
[1734037309649,2.1863,228.64,228.55,2.32]
[1734037309850,2.1863,228.64,228.59,2.1867]
[1734037310351,2.1859,228.68,228.61,2.1865]
[1734037310654,2.186,228.67,228.6,2.32]
[1734037311351,10.09455341,228.7,228.61,2.32]
[1734037311548,7.69288497,228.69,228.61,2.32]
[1734037311751,2.95880191,228.68,228.61,2.32]
[1734037311948,2.1861,228.66,228.61,2.32]
[1734037312151,10.09455341,228.67,228.61,2.32]
[1734037312453,2.95888926,228.66,228.61,2.32]
[1734037312651,10.09455341,228.67,228.61,2.32]
[1734037312849,2.95855473,228.66,228.61,2.32]
[1734037313155,10.09455341,228.67,228.61,2.32]
[1734037313459,2.1862,228.65,228.61,4.5065]
[1734037313955,10.09455341,228.67,228.61,2.32]
[1734037314253,2.1864,228.63,228.59,2.1867]
[1734037315060,10.09455341,228.64,228.57,2.32]
[1734037315556,2.1864,228.62,228.57,2.32]
[1734037315756,10.09455341,228.64,228.57,2.32]
[1734037316055,2.1866,228.61,228.57,2.32]
[1734037316854,2.1866,228.61,228.57,4.5069]
[1734037317256,10.09455341,228.64,228.57,2.32]
[1734037318054,2.1867,228.6,228.57,2.32]
[1734037319859,2.1867,228.6,228.57,4.5069]
[1734037320451,2.1867,228.6,228.57,2.32]
[1734037320653,6.46947459,228.59,228.53,5.23027512]
[1734037320856,6.46947459,228.57,228.52,2.32]
[1734037321156,6.46947459,228.57,228.41,1.3646]
[1734037321355,2.1872,228.54,228.49,6.46947459]
[1734037321657,2.1872,228.54,228.5,2.1876]
[1734037323055,1.3626,228.6,228.49,14.00422412]
[1734037323258,6.46947459,228.57,228.49,11.68422412]
[1734037323453,6.46947459,228.55,228.5,2.32]
[1734037323762,6.46947459,228.55,228.49,14.00422412]
[1734037325056,6.46947459,228.51,228.42,2.8375]
[1734037325364,6.46947459,228.49,228.43,2.32]
[1734037325662,2.1879,228.48,228.43,4.5082]
[1734037325858,2.1879,228.48,228.43,2.1882]
[1734037326258,2.1879,228.48,228.42,8.78947459]
[1734037326758,6.46947459,228.47,228.42,8.78947459]
[1734037326954,8.65737459,228.47,228.42,8.78947459]
[1734037327159,2.1879,228.47,228.37,10.12037503]
[1734037327354,2.1879,228.47,228.42,5.3316166]
[1734037328162,2.1879,228.47,228.38,2.32]
[1734037329159,2.188,228.46,228.38,2.32]
[1734037329363,10.12037503,228.51,228.38,2.32]
[1734037329565,2.1877,228.49,228.45,2.188]
[1734037329859,4.0827,228.6,228.39,5.27459177]
[1734037329860,2.32,228.55,228.43,2.32]
[1734037330062,10.12037503,228.55,228.43,12.44037503]
[1734037330262,2.1874,228.52,228.47,2.1878]
[1734037330562,10.12037503,228.55,228.47,2.1878]
[1734037331160,2.1873,228.53,228.47,2.1878]
[1734037331355,10.12037503,228.55,228.47,2.1878]
[1734037331563,10.12037503,228.55,228.43,12.44037503]
[1734037331763,2.1875,228.52,228.48,2.1878]
[1734037332256,2.1873,228.54,228.43,12.44037503]
[1734037332566,10.12037503,228.55,228.43,12.44037503]
[1734037332765,2.1873,228.53,228.48,2.1877]
[1734037333859,12.30757503,228.55,228.5,2.1875]
[1734037334065,2.1872,228.55,228.46,10.12037503]
[1734037334665,2.1872,228.54,228.5,2.1876]
[1734037334864,2.32,228.57,228.48,2.32]
[1734037335062,2.1872,228.55,228.51,2.1875]
[1734037335263,2.1872,228.55,228.48,2.32]
[1734037336268,2.1872,228.55,228.5,2.1876]
[1734037336962,2.187,228.56,228.52,2.1873]
[1734037337165,2.187,228.56,228.48,2.32]
[1734037337668,2.187,228.56,228.52,2.1873]
[1734037339165,2.1872,228.54,228.5,2.1876]
[1734037339370,10.12037503,228.58,228.48,2.32]
[1734037339665,7.68126049,228.57,228.48,2.32]
[1734037339865,2.1874,228.53,228.49,2.1876]
[1734037344169,10.12037503,228.58,228.49,2.1876]
[1734037344375,7.70157204,228.57,228.46,2.32]
[1734037344570,7.70157204,228.56,228.46,2.32]
[1734037344771,7.70157204,228.55,228.46,2.32]
[1734037344966,7.70157204,228.55,228.46,4.5079]
[1734037345175,7.70157204,228.55,228.46,2.32]
[1734037345473,5.14934309,228.54,228.51,2.1875]
[1734037345679,2.96214309,228.54,228.46,12.44037503]
[1734037345872,7.70358465,228.59,228.46,12.44037503]
[1734037346075,2.96291717,228.58,228.46,12.44037503]
[1734037346374,11.78589352,228.6,228.46,12.44037503]
[1734037346671,2.1871,228.56,228.52,2.1873]
[1734037346876,2.96369224,228.55,228.52,2.1873]
[1734037347066,2.1871,228.56,228.52,2.1873]
[1734037347267,2.96392634,228.55,228.52,2.1873]
[1734037347470,2.1871,228.56,228.52,2.1873]
[1734037347665,2.96477061,228.55,228.52,2.1873]
[1734037347865,2.1871,228.56,228.52,2.1873]
[1734037348175,2.96477021,228.55,228.52,2.1873]
[1734037348375,2.1871,228.56,228.52,2.1873]
[1734037348576,2.96582529,228.55,228.52,2.1873]
[1734037348874,2.1871,228.56,228.52,2.1873]
[1734037349175,2.96582529,228.55,228.52,2.1873]
[1734037349477,6.47194231,228.57,228.5,6.47194231]
[1734037349678,2.96706709,228.56,228.52,6.47194231]
[1734037349867,10.55464231,228.6,228.52,6.47194231]
[1734037350175,2.96677349,228.59,228.54,2.1872]
[1734037350474,2.96677349,228.58,228.52,6.47194231]
[1734037350672,2.1868,228.58,228.54,2.1872]
[1734037350976,10.55464231,228.6,228.52,6.47194231]
[1734037351180,9.90074086,228.59,228.54,2.1872]
[1734037351368,2.96688222,228.58,228.54,2.1872]
[1734037351668,2.96688222,228.58,228.52,6.47194231]
[1734037352277,2.96688222,228.58,228.54,2.1871]
[1734037353379,9.43882453,228.58,228.51,2.32]
[1734037353672,6.47194231,228.56,228.49,8.79194231]
[1734037354679,2.1872,228.55,228.51,2.1875]
[1734037355776,6.47194231,228.54,228.49,2.32]
[1734037356074,6.47194231,228.5,228.44,6.47194231]
[1734037356377,8.65964231,228.5,228.46,2.188]
[1734037357672,2.1877,228.49,228.45,2.188]
[1734037359181,6.47194231,228.5,228.4,6.03699436]
[1734037359373,6.47194231,228.48,228.41,6.47194231]
[1734037359879,2.188,228.47,228.43,2.1883]
[1734037360775,2.32,228.54,228.44,2.1881]
[1734037360979,7.72647275,228.53,228.45,6.47194231]
[1734037361277,2.97172029,228.52,228.4,8.35699436]
[1734037361475,2.97172029,228.51,228.45,6.47194231]
[1734037361779,5.15942029,228.5,228.45,8.65994231]
[1734037361978,6.47194231,228.53,228.45,8.65994231]
[1734037362180,7.7273833,228.52,228.45,8.65994231]
[1734037362380,9.44401281,228.51,228.45,8.65994231]
[1734037362680,2.9720705,228.5,228.46,2.1879]
[1734037362880,7.72819886,228.52,228.47,6.47194231]
[1734037363377,2.1877,228.5,228.47,6.47194231]
[1734037364381,2.32,228.56,228.47,6.47194231]
[1734037364583,7.73180601,228.55,228.47,6.47194231]
[1734037364779,14.20374832,228.54,228.47,6.47194231]
[1734037364981,2.1874,228.52,228.49,2.1876]
[1734037365281,6.47194231,228.5,228.45,2.32]
[1734037365787,2.1877,228.49,228.45,2.32]
[1734037365984,6.47194231,228.5,228.46,2.1879]
[1734037366486,2.97467363,228.49,228.46,2.1879]
[1734037366682,8.65964231,228.5,228.46,2.1879]
[1734037366880,2.97467427,228.49,228.46,2.1879]
[1734037367183,8.65964231,228.5,228.46,2.1879]
[1734037367384,2.97488462,228.49,228.46,2.1879]
[1734037367574,8.65964231,228.5,228.46,2.1879]
[1734037367776,2.97484899,228.49,228.46,2.1879]
[1734037367984,8.65964231,228.5,228.46,2.1879]
[1734037368283,2.97487571,228.49,228.46,2.1879]
[1734037368486,8.65964231,228.5,228.46,2.1879]
[1734037368682,2.97517087,228.49,228.46,2.1879]
[1734037368883,8.65964231,228.5,228.46,2.1879]
[1734037369182,2.97517087,228.49,228.46,2.1879]
[1734037369384,8.65964231,228.5,228.46,2.1879]
[1734037369584,8.65964231,228.5,228.45,4.508]
[1734037369585,2.97525812,228.49,228.45,4.508]
[1734037369783,6.47194231,228.5,228.45,4.508]
[1734037369977,2.97531772,228.49,228.45,2.32]
[1734037370178,6.47194231,228.5,228.45,2.32]
[1734037370383,2.97518432,228.49,228.45,2.32]
[1734037370577,6.47194231,228.5,228.45,2.32]
[1734037370779,2.97518064,228.49,228.45,2.32]
[1734037370983,6.47194231,228.5,228.45,2.32]
[1734037371183,2.97518662,228.49,228.45,2.32]
[1734037371384,2.97536407,228.48,228.47,2.1879]
[1734037371585,6.47194231,228.52,228.47,2.1879]
[1734037371782,7.73571183,228.51,228.47,2.1879]
[1734037372185,2.97527378,228.51,228.47,2.1879]
[1734037372390,2.97527378,228.5,228.47,2.1879]
[1734037372593,2.1875,228.51,228.47,2.1879]
[1734037372793,2.97549777,228.5,228.47,2.1879]
[1734037372982,2.1875,228.51,228.47,2.1879]
[1734037373291,5.16309777,228.5,228.47,2.1879]
[1734037373484,2.1876,228.5,228.47,2.1879]
[1734037373691,2.97582131,228.49,228.46,8.65994231]
[1734037373889,2.1876,228.5,228.46,8.65994231]
[1734037374194,2.97582212,228.49,228.46,2.188]
[1734037374387,6.47194231,228.52,228.46,2.188]
[1734037374690,6.47194231,228.52,228.35,2.7858]
[1734037374691,6.47194231,228.48,228.43,2.32]
[1734037374894,6.47194231,228.48,228.41,8.79194231]
[1734037374895,2.97623621,228.47,228.41,8.79194231]
[1734037375086,2.97623621,228.47,228.41,10.98034231]
[1734037375087,2.188,228.46,228.41,10.98034231]
[1734037375691,2.188,228.46,228.41,8.66034231]
[1734037376093,2.188,228.46,228.43,6.47194231]
[1734037377694,6.47194231,228.48,228.41,8.66034231]
[1734037377992,2.9759445,228.47,228.41,6.47194231]
[1734037378185,2.9759445,228.46,228.41,6.47194231]
[1734037378383,6.47194231,228.48,228.41,6.47194231]
[1734037378690,2.97549168,228.47,228.41,6.47194231]
[1734037378893,5.16359168,228.46,228.42,2.1883]
[1734037379196,6.47194231,228.48,228.41,6.47194231]
[1734037379491,2.97507036,228.47,228.41,6.47194231]
[1734037379686,2.97507036,228.47,228.43,2.1882]
[1734037379687,2.188,228.47,228.43,2.1882]
[1734037379898,4.2194,228.52,228.41,6.47194231]
[1734037380100,6.47194231,228.49,228.41,6.47194231]
[1734037380288,2.97502294,228.48,228.41,6.47194231]
[1734037380489,2.97502294,228.47,228.43,2.1882]
[1734037380693,2.1878,228.48,228.43,2.1882]
[1734037380895,2.97489316,228.47,228.43,2.1882]
[1734037381198,2.188,228.46,228.41,6.47194231]
[1734037381997,6.47194231,228.49,228.41,6.47194231]
[1734037382194,5.16235982,228.48,228.43,2.1882]
[1734037382391,6.47194231,228.49,228.41,6.47194231]
[1734037382692,2.188,228.46,228.41,6.47194231]
[1734037383596,2.188,228.46,228.43,2.1882]
[1734037384297,14.20505288,228.45,228.35,2.7858]
[1734037384490,6.47194231,228.43,228.36,6.47194231]
[1734037385597,2.1884,228.42,228.38,2.1887]
[1734037388695,6.47194231,228.41,228.34,6.47194231]
[1734037389201,2.1889,228.37,228.34,8.66104231]
[1734037389698,2.1889,228.36,228.33,5.17141468]
[1734037389901,6.47194231,228.35,228.29,8.79194231]
[1734037390296,6.47194231,228.35,228.29,2.32]
[1734037390297,2.1894,228.32,228.29,2.32]
[1734037390692,2.1894,228.32,228.28,6.47194231]
[1734037390891,2.1892,228.34,228.28,6.47194231]
[1734037391299,6.47194231,228.31,228.26,6.04810713]
[1734037391499,2.1895,228.3,228.26,6.04810713]
[1734037394401,2.1895,228.3,228.26,12.52004944]
[1734037394601,4.1529,228.42,228.29,6.47194231]
[1734037394602,2.32,228.41,228.29,6.47194231]
[1734037394903,6.47194231,228.39,228.32,6.47194231]
[1734037395102,3.06611918,228.38,228.32,6.47194231]
[1734037395394,2.1887,228.38,228.32,6.47194231]
[1734037395599,2.1887,228.38,228.33,2.1891]
[1734037396098,2.1887,228.38,228.33,2.1892]
[1734037396702,2.1887,228.38,228.34,2.1891]
[1734037397402,8.66054231,228.39,228.35,2.189]
[1734037398210,2.32,228.41,228.34,6.47194231]
[1734037398506,3.06495628,228.4,228.34,6.47194231]
[1734037398709,3.06495628,228.39,228.34,6.47194231]
[1734037399009,2.1886,228.4,228.33,2.32]
[1734037399304,9.5370592,228.39,228.33,8.79194231]
[1734037399506,6.47194231,228.39,228.33,8.79194231]
[1734037400405,6.47194231,228.37,228.29,3.655]
[1734037400604,6.47194231,228.35,228.29,2.32]
[1734037400798,2.32,228.39,228.29,2.32]
[1734037401001,8.66084231,228.36,228.29,8.79194231]
[1734037401206,8.66084231,228.36,228.32,2.1893]
[1734037401401,6.47194231,228.36,228.29,2.32]
[1734037401601,6.47194231,228.36,228.29,8.79194231]
[1734037402009,8.66084231,228.36,228.31,2.1894]
[1734037402201,8.66084231,228.36,228.3,6.47194231]
[1734037402406,6.47194231,228.36,228.3,6.47194231]
[1734037402802,6.47194231,228.36,228.32,2.1892]
[1734037403108,6.47194231,228.36,228.3,6.47194231]
[1734037403406,6.47194231,228.36,228.29,2.32]
[1734037403407,6.47194231,228.4,228.34,6.47194231]
[1734037403603,6.47194231,228.4,228.32,6.47194231]
[1734037403905,6.47194231,228.38,228.34,2.189]
[1734037404710,8.66074231,228.38,228.31,2.32]
[1734037404906,4.1529,228.42,228.31,2.32]
[1734037404907,6.47194231,228.36,228.31,2.32]
[1734037405304,6.47194231,228.34,228.31,2.1893]
[1734037405505,6.47194231,228.34,228.27,2.32]
[1734037405704,6.47194231,228.34,228.27,8.79194231]
[1734037407208,6.47194231,228.36,228.31,2.1894]
[1734037408303,8.66094231,228.36,228.31,2.1894]
[1734037410505,8.66064231,228.39,228.31,6.47194231]
[1734037410819,6.47194231,228.37,228.31,6.47194231]
[1734037411012,6.47194231,228.37,228.29,6.47194231]
[1734037411210,6.47194231,228.37,228.34,2.1891]
[1734037412016,6.47194231,228.37,228.28,2.32]
[1734037412212,6.47194231,228.35,228.28,8.79194231]
[1734037412413,2.1891,228.34,228.28,8.79194231]
[1734037412613,6.47194231,228.35,228.31,2.1894]
[1734037415118,2.189,228.36,228.31,2.1894]
[1734037415321,8.66064231,228.38,228.34,2.189]
[1734037416515,6.47194231,228.36,228.32,2.1892]
[1734037417420,8.66114231,228.34,228.29,2.1895]
[1734037417618,6.47194231,228.32,228.29,2.1895]
[1734037421924,3.07149808,228.31,228.29,2.1895]
[1734037422217,6.47194231,228.32,228.29,2.1895]
[1734037423222,3.07184189,228.31,228.29,2.1895]
[1734037423524,6.47194231,228.32,228.29,2.1895]
[1734037423720,3.07183495,228.31,228.29,2.1895]
[1734037423916,6.47194231,228.32,228.29,2.1895]
[1734037424115,3.07183493,228.31,228.29,2.1895]
[1734037424321,2.1893,228.33,228.29,2.1895]
[1734037424522,3.07250008,228.32,228.29,2.1895]
[1734037424818,2.1893,228.33,228.29,2.1895]
[1734037425117,3.07236835,228.32,228.29,2.1895]
[1734037425321,2.1893,228.33,228.29,2.1895]
[1734037425522,3.0724371,228.32,228.29,2.1895]
[1734037425716,2.1893,228.33,228.29,2.1895]
[1734037425914,3.0724351,228.32,228.29,2.1895]
[1734037426116,2.1893,228.33,228.29,2.1895]
[1734037426323,3.07246564,228.32,228.29,2.1895]
[1734037426523,2.1893,228.33,228.29,2.1895]
[1734037426718,3.07353517,228.32,228.29,2.1895]
[1734037426919,2.1893,228.33,228.29,2.1895]
[1734037427118,3.07353568,228.32,228.29,2.1895]
[1734037427326,2.1893,228.33,228.29,2.1895]
[1734037427521,3.07479036,228.32,228.29,2.1895]
[1734037427825,2.1893,228.33,228.29,2.1895]
[1734037428024,3.07479991,228.32,228.29,2.1895]
[1734037428620,7.99651304,228.32,228.29,2.1895]
[1734037428921,3.07479991,228.31,228.29,2.1895]
[1734037429121,2.1893,228.33,228.29,2.1895]